[Event "Leca Open 2022"]
[Site "Leca da Palmeira"]
[Date "2022.08.02"]
[Round "4.14"]
[White "Pina, Tiago"]
[Black "Pena Duarte, Fabian Dario"]
[Result "1/2-1/2"]
[ECO "C00"]
[WhiteElo "1897"]
[BlackElo "2224"]
[Annotator "RC"]
[PlyCount "173"]
[EventDate "2022.08.02"]
[EventType "swiss"]
[EventCountry "POR"]
[SourceTitle "playchess.com"]
[Source "ChessBase"]
[SourceQuality "1"]
[TimeControl "5400+30"]

1. e4 {[%emt 0:00:03]} e6 {[%emt 0:03:13]} 2. Qe2 {[%emt 0:00:07]} Nc6 {[%emt 0:00:14]} 3. Nf3 {[%emt 0:00:09]} e5 {[%emt 0:00:07]} 4. Nc3 {[%emt 0:00:38]} Nf6 {[%emt 0:02:18]} 5. d3 {[%emt 0:00:57]} Be7 {[%emt 0:01:10]} 6. Bg5 {[%emt 0:01:20]} O-O {[%emt 0:00:46]} 7. O-O-O {[%emt 0:01:17]} Re8 {[%emt 0:01:36]} 8. Bxf6 {[%emt 0:02:53]} Bxf6 {[%emt 0:00:48]} 9. Nd5 {[%emt 0:00:26]} d6 {[%emt 0:00:18]} 10. h3 {[%emt 0:06:24]} Be6 {[%emt 0:01:57]} 11. Kb1 {[%emt 0:02:23]} a5 {[%emt 0:01:39]} 12. g4 {[%emt 0:01:05]} Bxd5 {[%emt 0:03:30]} 13. exd5 {[%emt 0:00:09]} Nb4 {[%emt 0:00:02]} 14. c4 {[%emt 0:13:05]} c6 {[%emt 0:01:56]} 15. a3 {[%emt 0:02:38]} Na6 {[%emt 0:05:02]} 16. h4 {[%emt 0:01:23]} g6 {[%emt 0:03:23]} 17. g5 {[%emt 0:01:01]} Bg7 {[%emt 0:00:03]} 18. Nd2 {[%emt 0:04:49]} cxd5 {[%emt 0:04:44]} 19. cxd5 {[%emt 0:00:12]} b5 {[%emt 0:00:25]} 20. Ne4 {[%emt 0:01:23]} b4 {[%emt 0:02:52]} 21. a4 {[%emt 0:04:02]} b3 {[%emt 0:00:07]} 22. Bg2 {[%emt 0:02:51]} Qd7 {[%emt 0:02:25]} 23. Nc3 {[%emt 0:01:31]} Nc5 {[%emt 0:00:35]} 24. Bh3 {[%emt 0:00:53]} Qb7 {[%emt 0:02:45]} 25. Ne4 {[%emt 0:14:09]} Nxe4 {[%emt 0:09:04]} 26. dxe4 {[%emt 0:02:16]} h6 {[%emt 0:24:27]} 27. Rc1 {[%emt 0:04:13]} hxg5 {[%emt 0:01:33]} 28. hxg5 {[%emt 0:00:15]} Qe7 {[%emt 0:00:44]} 29. Qe3 {[%emt 0:01:07]} Reb8 {[%emt 0:01:05]} 30. Rc4 {[%emt 0:00:28]} Rb4 {[%emt 0:04:09]} 31. Rhc1 {[%emt 0:00:26]} Rxc4 {[%emt 0:01:09]} 32. Rxc4 {[%emt 0:00:10]} Rb8 {[%emt 0:01:13]} 33. Bf1 {[%emt 0:08:43]} Bf8 {[%emt 0:08:34]} 34. Rc6 {[%emt 0:03:12]} Rb4 {[%emt 0:00:23]} 35. Bb5 {[%emt 0:00:25]} Qd8 {[%emt 0:08:04]} 36. Rc4 {[%emt 0:07:33]} Rxc4 {[%emt 0:00:19]} 37. Bxc4 {[%emt 0:00:01]} Be7 {[%emt 0:00:09]} 38. Qxb3 {[%emt 0:00:30]} Bxg5 {[%emt 0:00:03]} 39. f3 {[%emt 0:02:10]} Bd2 {[%emt 0:00:24]} 40. Bb5 {[%emt 0:00:22]} Bb4 {[%emt 0:00:26]} 41. Qe3 {[%emt 0:00:32]} Qh4 {[%emt 0:01:15]} 42. Ka2 {[%emt 0:00:15]} Qh2 {[%emt 0:00:27]} 43. Be8 {[%emt 0:00:49]} Kf8 {[%emt 0:01:31]} 44. Bb5 {[%emt 0:00:11]} Kg7 {[%emt 0:00:03]} 45. Qe2 {[%emt 0:00:37]} Qf4 {[%emt 0:01:16]} 46. Qg2 {[%emt 0:00:30]} Qc1 {[%emt 0:00:07]} 47. Qe2 {[%emt 0:00:15]} Kf6 {[%emt 0:00:37]} 48. Qh2 {[%emt 0:01:00]} Kg7 {[%emt 0:00:12]} 49. Qe2 {[%emt 0:00:06]} Bc5 {[%emt 0:00:05]} 50. Qf1 {[%emt 0:00:37]} Qd2 {[%emt 0:01:46]} 51. Qe2 {[%emt 0:00:07]} Qb4 {[%emt 0:00:10]} 52. Qc4 {[%emt 0:00:19]} Qxc4+ {[%emt 0:03:34]} 53. Bxc4 {[%emt 0:00:07]} Kh6 {[%emt 0:00:02]} 54. Bb5 {[%emt 0:04:20]} f5 {[%emt 0:00:52]} 55. Kb3 {[%emt 0:01:45]} fxe4 {[%emt 0:01:43]} 56. fxe4 {[%emt 0:00:02]} Bd4 {[%emt 0:00:29]} 57. Kc2 {[%emt 0:00:08]} Kg5 {[%emt 0:00:38]} 58. Be8 {[%emt 0:00:12]} Kh6 {[%emt 0:00:14]} 59. Bb5 {[%emt 0:00:14]} Kg7 {[%emt 0:00:18]} 60. b3 {[%emt 0:00:13]} Kf6 {[%emt 0:00:54]} 61. Kd2 {[%emt 0:00:15]} Kg5 {[%emt 0:00:23]} 62. Be8 {[%emt 0:00:12]} Kh6 {[%emt 0:00:24]} 63. Bb5 {[%emt 0:00:07]} Kh5 {[%emt 0:00:03]} 64. Be8 {[%emt 0:00:09]} Kg5 {[%emt 0:01:06]} 65. Ke2 {[%emt 0:00:11]} Kf6 {[%emt 0:00:01]} 66. Kf3 {[%emt 0:00:22]} Bc3 {[%emt 0:00:13]} 67. Bb5 {[%emt 0:00:13]} Bd2 {[%emt 0:00:22]} 68. Be8 {[%emt 0:00:10]} Bc1 {[%emt 0:00:04]} 69. Bb5 {[%emt 0:00:04]} Ke7 {[%emt 0:00:24]} 70. Ke2 {[%emt 0:00:42]} Kd8 {[%emt 0:01:14]} 71. Kd1 {[%emt 0:00:06]} Bf4 {[%emt 0:00:33]} 72. Ke2 {[%emt 0:00:08]} g5 {[%emt 0:00:54]} 73. Kf3 {[%emt 0:00:18]} Kc7 {[%emt 0:00:01]} 74. Be8 {[%emt 0:00:26]} Kb6 {[%emt 0:00:05]} 75. Kg4 {[%emt 0:00:59]} Kc5 {[%emt 0:00:03]} 76. Kf5 {[%emt 0:00:29]} Be3 {[%emt 0:01:01]} 77. Bh5 {[%emt 0:00:18]} Kd4 {[%emt 0:01:33]} 78. Bf3 {[%emt 0:00:10]} Bd2 {[%emt 0:00:20]} 79. Be2 {[%emt 0:00:22]} Ke3 {[%emt 0:00:24]} 80. Bd1 {[%emt 0:00:11]} Bc1 {[%emt 0:00:16]} 81. Bh5 {[%emt 0:00:12]} Kd3 {[%emt 0:00:38]} 82. Bf3 {[%emt 0:00:32]} Kc2 {[%emt 0:00:29]} 83. Be2 {[%emt 0:00:11]} Kxb3 {[%emt 0:00:14]} 84. Bd1+ {[%emt 0:00:09]} Kc3 {[%emt 0:00:11]} 85. Bh5 {[%emt 0:00:12]} Kd4 {[%emt 0:00:11]} 86. Bd1 {[%emt 0:00:07]} Ke3 {[%emt 0:00:16]} 87. Bg4 {[%emt 0:00:07]} 1/2-1/2

[Event "Leca Open 2022"]
[Site "Leca da Palmeira"]
[Date "2022.08.02"]
[Round "4.15"]
[White "Abdurramane, Danial Germano"]
[Black "Mahitosh Dey"]
[Result "0-1"]
[ECO "D05"]
[WhiteElo "1820"]
[BlackElo "2212"]
[Annotator "RC"]
[PlyCount "44"]
[EventDate "2022.08.02"]
[EventType "swiss"]
[EventCountry "POR"]
[SourceTitle "playchess.com"]
[Source "ChessBase"]
[SourceQuality "1"]
[TimeControl "5400+30"]

1. d4 {[%emt 0:00:04]} d5 {[%emt 0:00:04]} 2. Nf3 {[%emt 0:00:05]} Nf6 {[%emt 0:00:07]} 3. e3 {[%emt 0:00:08]} e6 {[%emt 0:00:39]} 4. Bd3 {[%emt 0:00:07]} c5 {[%emt 0:00:08]} 5. b3 {[%emt 0:00:12]} Nc6 {[%emt 0:00:34]} 6. O-O {[%emt 0:01:04]} Bd6 {[%emt 0:00:26]} 7. Bb2 {[%emt 0:00:06]} O-O {[%emt 0:00:17]} 8. Nbd2 {[%emt 0:00:06]} b6 {[%emt 0:01:10]} 9. Ne5 {[%emt 0:00:33]} Bb7 {[%emt 0:01:14]} 10. f4 {[%emt 0:01:39]} Rc8 {[%emt 0:00:20]} 11. a3 {[%emt 0:03:02]} Ne7 {[%emt 0:00:28]} 12. Qf3 {[%emt 0:08:44]} Rc7 {[%emt 0:01:09]} 13. Ng4 {[%emt 0:02:37]} Nxg4 {[%emt 0:08:56]} 14. Qxg4 {[%emt 0:00:32]} f5 {[%emt 0:00:05]} 15. Qh3 {[%emt 0:06:22]} g5 {[%emt 0:07:06]} 16. g4 {[%emt 0:26:09]} gxf4 {[%emt 0:03:28]} 17. Rxf4 {[%emt 0:14:02]} Bxf4 {[%emt 0:00:34]} 18. exf4 {[%emt 0:00:13]} Ng6 {[%emt 0:00:04]} 19. Qe3 {[%emt 0:07:35]} Qd6 {[%emt 0:00:59]} 20. Rf1 {[%emt 0:08:26]} c4 {[%emt 0:01:24]} 21. bxc4 {[%emt 0:00:18]} dxc4 {[%emt 0:00:05]} 22. Nxc4 {[%emt 0:01:12]} Qd5 {[%emt 0:00:06]} 0-1

[Event "Leca Open 2022"]
[Site "Leca da Palmeira"]
[Date "2022.08.03"]
[Round "5.1"]
[White "Motylev, Alexander"]
[Black "Das, Sayantan"]
[Result "1/2-1/2"]
[ECO "B12"]
[WhiteElo "2632"]
[BlackElo "2449"]
[Annotator "TA"]
[PlyCount "137"]
[EventDate "2022.08.02"]
[EventType "swiss"]
[EventCountry "POR"]
[SourceTitle "playchess.com"]
[Source "ChessBase"]
[SourceQuality "1"]
[TimeControl "5400+30"]

{[%evp 9,137,40,114,0,0,0,0,0,11,0,9,14,16,10,26,-17,-18,-40,-27,-45,-41,-33,0,0,0,0,55,29,53,36,38,-5,172,165,165,160,158,162,154,146,133,67,85,74,73,14,14,3,32,45,78,74,69,70,59,72,93,104,102,103,167,46,37,7,8,8,8,8,8,-23,8,8,8,8,8,8,8,0,0,-8,-8,-8,-8,-8,-8,-7511,-41,-40,-40,-40,-8,-8,-8,-8,0,0,0,-8,-8,-18,-15,-62,-40,-40,-40,-40,-40,-58,-40,-40,-14,-40,-40,-33,0,-40,-40,-40,-9,-9,-8,-8,-8,-8,-8,-8,-8,-8,-8,-8]} 1. e4 c6 2. d4 d5 3. e5 Bf5 4. c3 c5 5. Bb5+ Nd7 {[#]} (5... Bd7 $14 6. Bd3 Nc6) 6. Nf3 {B12: Caro-Kann: Advance Variation.} (6. dxc5 $1 $16 Qc7 7. b4 (7. Qxd5 O-O-O $14)) 6... e6 $11 7. O-O a6 {[%emt 0:20:58]} 8. Ba4 {[%emt 0:02:36] [#]} h6 $146 {[%emt 0:00:30]} ({Predecessor:} 8... b5 9. Bc2 Bxc2 10. Qxc2 Rc8 11. Qd3 Ne7 12. Bg5 Qb6 13. a4 cxd4 14. cxd4 Nf5 15. axb5 axb5 {1-0 (40) Asplet,M (1530)-Winter,R Wellington 2016}) 9. Nbd2 {[%emt 0:09:58]} Rc8 {[%emt 0:06:19]} 10. c4 {[%emt 0:24:32]} Ne7 {[%emt 0:17:22]} 11. dxc5 {[%emt 0:01:32]} Rxc5 {[%emt 0:01:13]} 12. b3 {[%emt 0:11:00]} Bd3 {[%emt 0:07:43][%csl LRc4,LRf1]} 13. Re1 {[%emt 0:07:45]} b5 {[%emt 0:06:35]} 14. Re3 {[%emt 0:03:33]} dxc4 {[%emt 0:03:58]} 15. bxc4 {[%emt 0:00:39]} Bg6 {[%emt 0:10:18]} 16. Bb3 {[%emt 0:05:11]} Nf5 {[%emt 0:09:02]} 17. Re1 {[%emt 0:08:39]} Be7 {[%emt 0:02:18]} (17... Rc8 $11) 18. Ne4 $14 {[%emt 0:03:12]} Rc6 {[%emt 0:04:20]} 19. cxb5 {[%emt 0:00:14]} axb5 {[%emt 0:00:02]} 20. Qe2 {[%emt 0:05:05]} (20. g4 $5 {[%cal Rg4f5]} Nh4 21. Nxh4 Bxe4 22. Rxe4 Bxh4 23. Be3 $14) 20... Qb8 $2 {[%emt 0:02:00]} (20... O-O $11) 21. g4 $18 {[%emt 0:04:22]} Nh4 {[%emt 0:05:06]} 22. Nxh4 {[%emt 0:02:05]} Bxh4 {[%emt 0:00:22]} 23. Nd6+ {[%emt 0:00:28]} Kf8 {[%emt 0:02:10]} 24. Bf4 {[%emt 0:02:23]} (24. Nxb5 $6 Nc5 25. Ba3 Kg8 $14) 24... Kg8 {[%emt 0:00:19]} 25. Rac1 {[%emt 0:00:57]} ({Much weaker is} 25. Qxb5 $6 Qxb5 26. Nxb5 Nc5 $11) (25. Nxb5 $6 Nc5 26. Nd4 Rc8 $14) (25. Rad1 $16) 25... Rxc1 $1 $14 {[%emt 0:00:42]} 26. Rxc1 {[%emt 0:00:03]} Kh7 {[%emt 0:00:21]} 27. Qxb5 {[%emt 0:00:36] White is much more active.} (27. Rd1 $16) 27... Qxb5 $11 {[%emt 0:01:06]} 28. Nxb5 {[%emt 0:00:06]} Rb8 {[%emt 0:00:41]} 29. Nd4 {[%emt 0:02:09]} Bg5 {[%emt 0:00:27]} 30. Bxg5 {[%emt 0:00:36]} hxg5 {[%emt 0:00:03]} 31. Nf3 $1 {[%emt 0:01:58]} Kh6 $1 {[%emt 0:00:44]} 32. Rc7 {[%emt 0:00:38]} Nb6 {[%emt 0:00:10]} 33. h4 {[%emt 0:03:31]} gxh4 {[%emt 0:00:23]} 34. Nxh4 {[%emt 0:00:04]} Nd5 {[%emt 0:01:29]} (34... Be4 $16) 35. Rc4 {[%emt 0:00:17]} (35. Bxd5 $18 exd5 36. Kh2) 35... Bb1 $14 {[%emt 0:00:33][%cal Ob1a2]} 36. f4 {[%emt 0:01:49]} (36. Rc1 $5 {[%cal Rc1b1]} Rb4 37. f3 $14 (37. Rxb1 Rxg4+ 38. Kh2 Rxh4+ 39. Kg3 Kg5 $11)) 36... g5 {[%emt 0:00:20]} 37. fxg5+ {[%emt 0:00:12]} Kxg5 {[%emt 0:00:21]} 38. Nf3+ {[%emt 0:00:04]} Kh6 {[%emt 0:00:19]} 39. Kh2 {[%emt 0:00:32]} Ra8 {[%emt 0:00:38]} (39... Bxa2 $5 40. Bxa2 (40. g5+ Kg6 $15) 40... Rb2+ 41. Kg3 Rxa2 $15) 40. a4 {[%emt 0:01:10]} Rb8 {[%emt 0:01:03]} 41. Nd2 {[%emt 0:02:00]} Ba2 {[%emt 0:00:18][%mdl 64] [#] Decoy} 42. Bxa2 {[%emt 0:00:25]} Rb2 {[%emt 0:00:01][%csl LRa2,LRd2]} 43. Kg3 {[%emt 0:01:04][%cal Og4g5]} Rxa2 $11 {[%emt 0:00:39][%mdl 4096] Endgame KRN-KRN} 44. Ne4 {[%emt 0:00:30]} Ra3+ {[%emt 0:00:28]} 45. Kf2 {[%emt 0:00:26]} Ne3 {[%emt 0:00:17]} 46. g5+ {[%emt 0:00:32]} Kg6 {[%emt 0:00:13]} 47. Rc3 {[%emt 0:00:36][%mdl 8192]} (47. Rb4 $11) 47... Ng4+ $2 {[%emt 0:00:37]} ({Better is} 47... Nd1+ $19 48. Kg2 Nxc3) 48. Kf3 $15 {[%emt 0:00:08]} Rxa4 {[%emt 0:00:24]} 49. Rc5 $1 {[%emt 0:00:07]} Nh2+ {[%emt 0:01:16]} 50. Kf4 {[%emt 0:00:25]} Nf1 {[%emt 0:00:20] Threatens to win with ...Nd2.} 51. Kf3 $1 {[%emt 0:00:09]} Nh2+ {[%emt 0:00:15]} 52. Kf4 {[%emt 0:00:05]} Nf1 {[%emt 0:00:08] aiming for ...Nd2.} 53. Kf3 $1 {[%emt 0:00:04]} Ra3+ {[%emt 0:00:25]} 54. Kf4 {[%emt 0:00:38]} Ne3 {[%emt 0:00:45]} 55. Nf6 {[%emt 0:00:21]} (55. Rc8 $11 Nd5+ 56. Kg4) 55... Nf5 {[%emt 0:00:28]} 56. Ne4 {[%emt 0:00:40]} Ra4 {[%emt 0:00:21]} 57. Rc3 {[%emt 0:00:14]} Ne7 {[%emt 0:01:04] Hoping for ...Nd5+.} 58. Rb3 {[%emt 0:01:21]} Nd5+ {[%emt 0:00:26]} 59. Kf3 {[%emt 0:00:06]} Ra1 {[%emt 0:00:32]} 60. Kf2 {[%emt 0:00:25]} Ra2+ {[%emt 0:00:46]} 61. Kf3 {[%emt 0:00:28]} Ra1 {[%emt 0:00:02]} 62. Kf2 {[%emt 0:00:07]} Ra7 {[%emt 0:00:28]} 63. Rf3 {[%emt 0:01:21]} Ra4 {[%emt 0:00:22]} 64. Nd6 {[%emt 0:00:18] The position is equal.} Rf4 {[%emt 0:01:18]} 65. Kg3 {[%emt 0:00:16]} Rxf3+ {[%emt 0:00:13]} 66. Kxf3 {[%emt 0:00:01]} Kxg5 {[%emt 0:00:45]} 67. Nxf7+ {[%emt 0:00:10]} Kf5 {[%emt 0:00:04]} 68. Nd8 {[%emt 0:00:09]} Kxe5 {[%emt 0:00:05]} 69. Nxe6 {[%emt 0:00:04] What a bad dream for Black.  Weighted Error Value: White=0.31/Black=0.27 (precise)} 1/2-1/2

[Event "Leca Open 2022"]
[Site "Leca da Palmeira"]
[Date "2022.08.02"]
[Round "5.2"]
[White "Buscara, Sevan"]
[Black "Martinez Duany, Lelys Stanley"]
[Result "0-1"]
[ECO "B30"]
[WhiteElo "2404"]
[BlackElo "2497"]
[Annotator "TA"]
[PlyCount "86"]
[EventDate "2022.08.02"]
[EventType "swiss"]
[EventCountry "POR"]
[SourceTitle "playchess.com"]
[Source "ChessBase"]
[SourceQuality "1"]
[TimeControl "5400+30"]

{[%evp 12,86,33,19,57,66,70,78,82,70,66,72,66,74,91,80,124,132,147,131,181,54,56,-62,-66,-77,-77,-64,-63,-66,-65,-92,-103,-152,-143,-196,-114,-186,-181,-209,-206,-221,-222,-206,-197,-206,-203,-213,-198,-319,-322,-472,-454,-541,-543,-526,-372,-688,-665,-923,-911,-1264,-1170,-1175,-1272,-1370,-1338,-1341,-1278,-1571,-1436,-2173,-2026,-2431,-2318,-2007,-1697]} 1. e4 c5 2. Nf3 Nc6 3. Bb5 e6 4. Bxc6 bxc6 5. d3 Ne7 6. Qe2 Ng6 7. h4 {[%emt 0:10:04]} h5 {[%emt 0:05:44] B30: Sicilian: 2...Nc6 3 Bb5, lines without ...g6.} 8. e5 $1 {[%emt 0:01:58]} f6 {[%emt 0:00:55] 8...f6 is better than 8...Be7.} 9. Nbd2 {[%emt 0:07:12]} Qc7 {[%emt 0:01:05][%cal Rg6e5] White is better.} 10. Nc4 {[%emt 0:00:25]} Ba6 {[%emt 0:00:10]} 11. Qe4 {[%emt 0:00:28]} Kf7 {[%emt 0:00:07]} 12. Bf4 {[%emt 0:01:03]} ({But not} 12. exf6 gxf6 13. Ncd2 d5 $17) 12... Bxc4 {[%emt 0:07:49]} 13. dxc4 {[%emt 0:01:00] [#]} Be7 $146 {[%emt 0:01:15]} ({Predecessor:} 13... d5 14. exd6 Bxd6 15. Bxd6 Qxd6 16. Rd1 Qc7 17. O-O Rad8 18. g3 Rd7 19. Qe3 Rxd1 20. Rxd1 {½-½ (48) Motylev,A (2641)-Lautier,J (2658) Chess.com INT 2020}) 14. O-O-O {[%emt 0:01:53]} Rab8 {[%emt 0:02:27]} 15. Rd3 {[%emt 0:06:24]} Qb7 {[%emt 0:00:43]} (15... f5 $16 16. Qe3 Qa5) 16. Rb3 {[%emt 0:01:00]} (16. b3 $1 $18) 16... f5 $14 {[%emt 0:00:17]} 17. Rxb7 {[%emt 0:12:17]} (17. Qe3 $14 Qa6 18. Bg5 Qxa2 19. Rd1) 17... fxe4 $15 {[%emt 0:00:10]} 18. Rxb8 {[%emt 0:00:14]} Rxb8 {[%emt 0:00:09]} 19. Ng5+ {[%emt 0:00:28]} Bxg5 {[%emt 0:00:38]} 20. Bxg5 {[%emt 0:00:04]} Nxe5 {[%emt 0:01:42][%mdl 4096] Endgame KRB-KRN} 21. Bf4 {[%emt 0:00:18]} Kf6 {[%emt 0:01:09] Black is more active.} 22. f3 {[%emt 0:02:07]} ({White should try} 22. Bg5+ Kf5 23. Be7) 22... exf3 $17 {[%emt 0:04:29]} 23. Re1 {[%emt 0:02:40] [#]} (23. gxf3 $17 Rg8 24. Bxe5+ Kxe5 25. Kd2) 23... f2 {[%emt 0:01:34]} (23... d6 $1 $19 24. Bxe5+ dxe5) 24. Rf1 {[%emt 0:03:32] [#]} (24. Bxe5+ $17 Kf5 25. Rf1 Kxe5 26. Rxf2) 24... Rf8 $1 $19 {[%emt 0:01:42]} 25. Rxf2 {[%emt 0:02:31]} Kg6 {[%emt 0:00:11]} 26. b3 {[%emt 0:01:24]} Ng4 {[%emt 0:03:40]} 27. Rf3 {[%emt 0:00:10]} e5 {[%emt 0:00:28]} 28. Bg3 {[%emt 0:00:37]} Rf6 {[%emt 0:00:17]} 29. Rd3 {[%emt 0:01:10]} d6 {[%emt 0:00:11][%cal Bd7d6,Bd6d5,Bd5d4,Bd4d3,Bd3d2][%mdl 32]} 30. Kb2 {[%emt 0:00:25]} (30. Kd2 $142) 30... Kf5 {[%emt 0:00:33]} 31. Ka3 {[%emt 0:00:17]} (31. Kc3 $142) 31... Ke4 {[%emt 0:01:16]} 32. Ka4 {[%emt 0:00:33]} Ne3 {[%emt 0:00:51]} 33. Rd2 {[%emt 0:00:36]} d5 {[%emt 0:00:30]} 34. Bf2 $2 {[%emt 0:01:47]} (34. cxd5 cxd5 35. Kb5) 34... d4 {[%emt 0:00:22] Black is clearly winning.} 35. Ka5 {[%emt 0:00:10] [#]} Nxc2 $1 {[%emt 0:01:55][%mdl 512]} 36. Rxc2 {[%emt 0:01:11] KRB-KR} (36. Ka6 Ne3) 36... Kd3 {[%emt 0:00:09]} 37. Rb2 {[%emt 0:00:24]} Kc3 {[%emt 0:00:08]} 38. Re2 {[%emt 0:00:15] [#]} Rxf2 $1 {[%emt 0:00:08][%mdl 512]} 39. Rxf2 {[%emt 0:00:12]} d3 {[%emt 0:00:06] aiming for ...d2.} 40. Ka6 {[%emt 0:02:53]} d2 {[%emt 0:00:25]} 41. Rf1 {[%emt 0:00:19]} e4 {[%emt 0:00:25][%cal Be5e4,Be4e3][%mdl 32]} 42. Kxa7 {[%emt 0:00:26]} e3 {[%emt 0:00:07] Strongly threatening ...e2.} 43. Rf3 {[%emt 0:00:19]} Kd3 {[%emt 0:00:13] Quite a comeback for Black.  Weighted Error Value: White=0.87/Black=0.12 (very precise)} 0-1

[Event "Leca Open 2022"]
[Site "Leca da Palmeira"]
[Date "2022.08.02"]
[Round "5.3"]
[White "Spraggett, Kevin"]
[Black "Pierrot, Facundo"]
[Result "1/2-1/2"]
[ECO "A36"]
[WhiteElo "2487"]
[BlackElo "2371"]
[Annotator "RC"]
[PlyCount "20"]
[EventDate "2022.08.02"]
[EventType "swiss"]
[EventCountry "POR"]
[SourceTitle "playchess.com"]
[Source "ChessBase"]
[SourceQuality "1"]
[TimeControl "5400+30"]

1. c4 c5 2. g3 g6 3. Bg2 Bg7 4. Nc3 Nc6 5. e3 e6 6. Nge2 Nge7 7. d4 cxd4 8. exd4 d5 9. cxd5 Nxd5 10. Nxd5 exd5 1/2-1/2

[Event "Leca Open 2022"]
[Site "Leca da Palmeira"]
[Date "2022.08.03"]
[Round "5.4"]
[White "Stella, Andrea"]
[Black "Krishna C R G"]
[Result "0-1"]
[ECO "C02"]
[WhiteElo "2443"]
[BlackElo "2430"]
[Annotator "TA"]
[PlyCount "122"]
[EventDate "2022.08.02"]
[EventType "swiss"]
[EventCountry "POR"]
[SourceTitle "playchess.com"]
[Source "ChessBase"]
[SourceQuality "1"]
[TimeControl "5400+30"]

{[%evp 14,122,21,14,18,12,18,8,19,6,35,41,52,45,33,31,48,34,22,0,39,22,27,21,26,20,35,-29,33,0,0,0,0,-13,-1,-12,0,-40,19,-27,-27,-36,0,-38,0,-45,0,-7,0,0,0,0,0,-56,-49,-54,-54,-43,-50,-129,0,-4,-16,-38,29,-110,-10,-2,0,-16,0,-151,-131,-133,-127,-138,-145,-132,-137,-151,-140,-214,-213,-209,-138,-151,-118,-284,-250,-440,-260,-216,-233,-257,-269,-1157,-1111,-1069,-1054,-1750,-869,-887,-874,-866,-858,-5724,-5687,-5322,-5314,-29994,-647]} 1. e4 e6 2. d4 d5 3. e5 c5 4. c3 Qb6 5. Nf3 Bd7 6. Be2 cxd4 7. cxd4 Bb5 8. Nc3 Bxe2 {C02: French: Advance Variation.} 9. Nxe2 Nc6 {9...Bb4+ is the modern continuation.} 10. O-O Nge7 {The position is equal.} 11. Ng3 g6 {[#]} 12. Rb1 $146 ({Predecessor:} 12. b3 Bg7 13. Bg5 h6 14. Be3 O-O 15. h4 Nf5 16. Nxf5 gxf5 17. Ne1 f4 18. Bxf4 Qxd4 {½-½ (27) Marrero Lopez,Y (2328)-Arribas Robaina,M (2300) Guayaquil 2011}) 12... a5 13. Be3 Bg7 14. Re1 O-O 15. Bg5 h6 16. Bf6 Rfe8 17. Bxg7 Kxg7 18. Qd2 Rec8 19. Qf4 Ng8 20. Qg4 (20. Red1 $14) 20... Kh7 (20... Nce7 $11) 21. h4 Nce7 22. Qf4 Kg7 23. Re3 Rc4 24. b3 Rac8 25. Rbe1 ({Don't play} 25. bxc4 Qxb1+ 26. Re1 Qxa2 $17) 25... R4c6 (25... Rc1 $15) 26. Kh2 (26. h5 {was preferrable.}) 26... Qb4 27. R1e2 Qa3 28. Qg4 Kh7 29. Qf4 Rf8 30. Rd3 Qc1 31. Rdd2 Kg7 32. Re1 Qa3 33. Qe3 (33. Ree2 $11) 33... Rfc8 $1 $15 34. Ree2 Rc3 35. Qf4 Qc1 36. Qg4 ({White should play} 36. Ng1 $15) 36... Kf8 (36... Rc2 $1 $17) 37. Re1 Qa3 {Hoping for ...Rc2.} 38. h5 g5 {[#]} (38... Rc2 $1 $15) 39. Re3 (39. Nxg5 $1 $11 {keeps the balance.} hxg5 40. Qxg5) 39... Kg7 (39... Rxe3 $17 40. fxe3 Qc1) 40. Rxc3 $11 Rxc3 41. Ne2 Rc6 42. Nxg5 $2 hxg5 $17 43. Qxg5+ Kh7 $1 44. Qf4 Nh6 45. g4 Rc8 46. f3 a4 47. Qe3 (47. bxa4 $17 Rc4 48. Kg2) 47... axb3 $19 48. axb3 Qa1 49. Qd3+ Kg7 {...Qe1 is the strong threat.} 50. Qe3 $2 {Now White is beyond hope.} (50. Rd1 $17 {was necessary.} Qa3 51. Kh3) 50... Qe1 51. Ra2 $2 {[#]} (51. Qf4 {was the only defense.}) 51... Qb1 (51... Nef5 $142 $1 {[%mdl 512]} 52. Qg1 Qh4+ 53. Kg2 Nxg4 $1 54. fxg4 Kh7 $1 55. gxf5 Rg8+ 56. Kf1 Qh3+ 57. Ke1 Rxg1+ 58. Nxg1 Qxb3) 52. Rd2 Kh7 {And now ...Qe1 would win.} 53. Ng3 Qc1 {Threatens to win with ...Rc3.} 54. Ne2 {Inhibits Rc3.} (54. Qd3+ Kg7 55. Ne2 (55. Qe3 $2 Rc2 $19)) 54... Qe1 55. Ra2 Rg8 56. Qd3+ {[#]} Kh8 (56... Nef5 $142 $1 {[%mdl 512]} 57. Nf4 Qg3+ 58. Kh1 Qxf4) 57. Ng3 {[#]} Nef5 $1 {[%mdl 512]} 58. Rg2 Nxg3 59. Rxg3 {[#]} Nf5 $1 {[%mdl 512]} 60. Rg2 Ne3 {( -> ...Ra8)} 61. Re2 Qh4+ {Weighted Error Value: White=0.66/Black=0.26 (precise)} 0-1